Workbook

Sheet One Sample t Test
A1: Data (Paste Below) | C1: Making Inference: One Sample Sigma Unknown (One-Sample t-Test) | P1: For those interested… Code to make the histogram on the left: | T1: Alternatives
A2: 1428 | T2: >
A3: 1227 | T3: ≠
A4: 985 | D4: Numerical Summaries | J4: Hypothesis Test | P4: Histogram Start Value | Q4: =MIN(A:A) -> 523 | T4: <
A5: 693 | D5: n | E5: Sample Mean | F5: Sample Standard Deviation | G5: Standard Error of the Mean | J5: H0 : | K5: µ | L5: = | M5: 620.000 | P5: Histogram Stop Value | Q5: =MAX(A:A) -> 1428
A6: 725 | J6: Ha : | K6: µ | L6: < | M6: =M5 -> 620.000 | P6: Bin Step Size | Q6: =(Q5-Q4)/H24 -> 100.56
A7: 833 | D7: =COUNT(A:A) -> 13 | E7: =AVERAGE(A:A) -> 871.000 | F7: =_xlfn.STDEV.S(A:A) -> 294.099 | G7: =F7/SQRT(D7) -> 81.568 | J7: Sample Mean (x-bar) | K7: Test Statistic ( t ) | L7: Degrees of Freedom ( df ) | M7: P-value | S7: X-axis of Graph | T7: Y-axis of Graph
A8: 721 | Q8: Bin Number | R8: Number of Values in Bin | S8: =S9 -> 523 | T8: 0
A9: 750 | D9: Graphical Summaries | J9: =E7 -> 871.000 | K9: =(E7-$M$5)/G7 -> 3.077 | L9: =D7-1 -> 12 | M9: =IF(L6="≠",2*_xlfn.T.DIST.RT(ABS(K9),L9),IF(L6="<",_xlfn.T.DIST(K9,L9,TRUE),_xlfn.T.DIST.RT(K9,L9))) -> 0.995 | P9: First Bin Start | Q9: 1 | R9: =COUNTIF(A:A,"<="&S10) -> 3 | S9: =Q4 -> 523 | T9: =R9 -> 3
A10: 548 | S10: =S9+$Q$6 -> 623.56 | T10: =T9 -> 3
A11: 621 | J11: 95% | K11: Confidence Interval for the True Mean | S11: =IF(Q9>$H$24,"",S10) -> 623.5555556 | T11: =IF(Q9>$H$24,"",0) -> 0
A12: 1321 | J12: Point Estimate (Sample Mean) | K12: Margin of Error | L12: Confidence Interval | P12: Second Bin Start | Q12: =Q9+1 -> 2 | R12: =IF(Q12>$H$24,"",COUNTIF(A:A,"<="&S13)) -> 5 | S12: =IF(Q12>$H$24,S11,S10) -> 623.5555556 | T12: =IF(Q12>$H$24,T11,T13) -> 2
A13: 948 | L13: Lower Bound | M13: Upper Bound | S13: =IF(Q12>$H$24,S12,S12+$Q$6) -> 724.1111111 | T13: =IF(Q12>$H$24,T12,R12-R9) -> 2
A14: 523 | J14: =E7 -> 871.000 | K14: =TINV(1-$J$11,L9)*G7 -> 177.722 | L14: =J14-K14 -> 693.278 | M14: =J14+K14 -> 1048.722 | S14: =IF(Q12>$H$24,S13,S13) -> 724.1111111 | T14: =IF(Q12>$H$24,T13,0) -> 0
K15: ="t*=±"&ROUND(_xlfn.T.INV.2T(1-J11,L9),3) -> t*=±2.179 | P15: Third Bin Start | Q15: =Q12+1 -> 3 | R15: =IF(Q15>$H$24,"",COUNTIF(A:A,"<="&S16)) -> 7 | S15: =IF(Q15>$H$24,S14,S13) -> 724.1111111 | T15: =IF(Q15>$H$24,T14,T16) -> 2
S16: =IF(Q15>$H$24,S15,S15+$Q$6) -> 824.6666667 | T16: =IF(Q15>$H$24,T15,R15-R12) -> 2
S17: =IF(Q15>$H$24,S16,S16) -> 824.6666667 | T17: =IF(Q15>$H$24,T16,0) -> 0
Q18: =Q15+1 -> 4 | R18: =IF(Q18>$H$24,"",COUNTIF(A:A,"<="&S19)) -> 8 | S18: =IF(Q18>$H$24,S17,S16) -> 824.6666667 | T18: =IF(Q18>$H$24,T17,T19) -> 1
S19: =IF(Q18>$H$24,S18,S18+$Q$6) -> 925.2222222 | T19: =IF(Q18>$H$24,T18,R18-R15) -> 1
S20: =IF(Q18>$H$24,S19,S19) -> 925.2222222 | T20: =IF(Q18>$H$24,T19,0) -> 0
Q21: =Q18+1 -> 5 | R21: =IF(Q21>$H$24,"",COUNTIF(A:A,"<="&S22)) -> 10 | S21: =IF(Q21>$H$24,S20,S19) -> 925.2222222 | T21: =IF(Q21>$H$24,T20,T22) -> 2
S22: =IF(Q21>$H$24,S21,S21+$Q$6) -> 1025.777778 | T22: =IF(Q21>$H$24,T21,R21-R18) -> 2
S23: =IF(Q21>$H$24,S22,S22) -> 1025.777778 | T23: =IF(Q21>$H$24,T22,0) -> 0
F24: Number of Bins for Histogram: | H24: 9 | Q24: =Q21+1 -> 6 | R24: =IF(Q24>$H$24,"",COUNTIF(A:A,"<="&S25)) -> 10 | S24: =IF(Q24>$H$24,S23,S22) -> 1025.777778 | T24: =IF(Q24>$H$24,T23,T25) -> 0
S25: =IF(Q24>$H$24,S24,S24+$Q$6) -> 1126.333333 | T25: =IF(Q24>$H$24,T24,R24-R21) -> 0
S26: =IF(Q24>$H$24,S25,S25) -> 1126.333333 | T26: =IF(Q24>$H$24,T25,0) -> 0
Q27: =Q24+1 -> 7 | R27: =IF(Q27>$H$24,"",COUNTIF(A:A,"<="&S28)) -> 10 | S27: =IF(Q27>$H$24,S26,S25) -> 1126.333333 | T27: =IF(Q27>$H$24,T26,T28) -> 0
S28: =IF(Q27>$H$24,S27,S27+$Q$6) -> 1226.888889 | T28: =IF(Q27>$H$24,T27,R27-R24) -> 0
S29: =IF(Q27>$H$24,S28,S28) -> 1226.888889 | T29: =IF(Q27>$H$24,T28,0) -> 0
Q30: =Q27+1 -> 8 | R30: =IF(Q30>$H$24,"",COUNTIF(A:A,"<="&S31)) -> 12 | S30: =IF(Q30>$H$24,S29,S28) -> 1226.888889 | T30: =IF(Q30>$H$24,T29,T31) -> 2
S31: =IF(Q30>$H$24,S30,S30+$Q$6) -> 1327.444444 | T31: =IF(Q30>$H$24,T30,R30-R27) -> 2
S32: =IF(Q30>$H$24,S31,S31) -> 1327.444444 | T32: =IF(Q30>$H$24,T31,0) -> 0
Q33: =Q30+1 -> 9 | R33: =IF(Q33>$H$24,"",COUNTIF(A:A,"<="&S34)) -> 13 | S33: =IF(Q33>$H$24,S32,S31) -> 1327.444444 | T33: =IF(Q33>$H$24,T32,T34) -> 1
S34: =IF(Q33>$H$24,S33,S33+$Q$6) -> 1428 | T34: =IF(Q33>$H$24,T33,R33-R30) -> 1
S35: =IF(Q33>$H$24,S34,S34) -> 1428 | T35: =IF(Q33>$H$24,T34,0) -> 0
Q36: =Q33+1 -> 10 | R36: =IF(Q36>$H$24,"",COUNTIF(A:A,"<="&S37)) ->  | S36: =IF(Q36>$H$24,S35,S34) -> 1428 | T36: =IF(Q36>$H$24,T35,T37) -> 0
S37: =IF(Q36>$H$24,S36,S36+$Q$6) -> 1428 | T37: =IF(Q36>$H$24,T36,R36-R33) -> 0
S38: =IF(Q36>$H$24,S37,S37) -> 1428 | T38: =IF(Q36>$H$24,T37,0) -> 0
Q39: =Q36+1 -> 11 | R39: =IF(Q39>$H$24,"",COUNTIF(A:A,"<="&S40)) ->  | S39: =IF(Q39>$H$24,S38,S37) -> 1428 | T39: =IF(Q39>$H$24,T38,T40) -> 0
S40: =IF(Q39>$H$24,S39,S39+$Q$6) -> 1428 | T40: =IF(Q39>$H$24,T39,R39-R36) -> 0
S41: =IF(Q39>$H$24,S40,S40) -> 1428 | T41: =IF(Q39>$H$24,T40,0) -> 0
Q42: =Q39+1 -> 12 | R42: =IF(Q42>$H$24,"",COUNTIF(A:A,"<="&S43)) ->  | S42: =IF(Q42>$H$24,S41,S40) -> 1428 | T42: =IF(Q42>$H$24,T41,T43) -> 0
S43: =IF(Q42>$H$24,S42,S42+$Q$6) -> 1428 | T43: =IF(Q42>$H$24,T42,R42-R39) -> 0
S44: =IF(Q42>$H$24,S43,S43) -> 1428 | T44: =IF(Q42>$H$24,T43,0) -> 0
Q45: =Q42+1 -> 13 | R45: =IF(Q45>$H$24,"",COUNTIF(A:A,"<="&S46)) ->  | S45: =IF(Q45>$H$24,S44,S43) -> 1428 | T45: =IF(Q45>$H$24,T44,T46) -> 0
S46: =IF(Q45>$H$24,S45,S45+$Q$6) -> 1428 | T46: =IF(Q45>$H$24,T45,R45-R42) -> 0
S47: =IF(Q45>$H$24,S46,S46) -> 1428 | T47: =IF(Q45>$H$24,T46,0) -> 0
Q48: =Q45+1 -> 14 | R48: =IF(Q48>$H$24,"",COUNTIF(A:A,"<="&S49)) ->  | S48: =IF(Q48>$H$24,S47,S46) -> 1428 | T48: =IF(Q48>$H$24,T47,T49) -> 0
S49: =IF(Q48>$H$24,S48,S48+$Q$6) -> 1428 | T49: =IF(Q48>$H$24,T48,R48-R45) -> 0
S50: =IF(Q48>$H$24,S49,S49) -> 1428 | T50: =IF(Q48>$H$24,T49,0) -> 0
Q51: =Q48+1 -> 15 | R51: =IF(Q51>$H$24,"",COUNTIF(A:A,"<="&S52)) ->  | S51: =IF(Q51>$H$24,S50,S49) -> 1428 | T51: =IF(Q51>$H$24,T50,T52) -> 0
S52: =IF(Q51>$H$24,S51,S51+$Q$6) -> 1428 | T52: =IF(Q51>$H$24,T51,R51-R48) -> 0
S53: =IF(Q51>$H$24,S52,S52) -> 1428 | T53: =IF(Q51>$H$24,T52,0) -> 0

Sheet Paired Data t Test
A1: Data 1 (Paste Below) | B1: Data 2 (Paste Below) | C1: The Differences (d) (Data 1 - Data 2) | E1: Making Inference: Paired Samples t-Test | R1: For those interested… Code to make the histogram on the left: | V1: Alternatives
A2: 63 | B2: 64 | C2: =IF(OR(ISBLANK(A2),ISBLANK(B2)),NA(),A2-B2) -> -1.000 | V2: > | X2: =IFERROR(C2,"") -> -1
A3: 61.9 | B3: 65 | C3: =IF(OR(ISBLANK(A3),ISBLANK(B3)),NA(),A3-B3) -> -3.100 | V3: ≠ | X3: =IFERROR(C3,"") -> -3.1
A4: 61.5 | B4: 64.2 | C4: -2.700 | F4: Numerical Summary of the Differences | L4: Hypothesis Test | R4: Histogram Start Value | S4: =MIN(X:X) -> -4.6 | V4: < | X4: -2.7
A5: 63.5 | B5: 65.3 | C5: -1.800 | F5: n | G5: Sample Mean of the Differences | H5: Sample Standard Deviation of the Differences | I5: Standard Error of the Mean Difference | L5: H0 : | M5: µd | N5: = | O5: 0.0 | R5: Histogram Stop Value | S5: =MAX(X:X) -> 0.3 | X5: -1.8
A6: 62.8 | B6: 65 | C6: -2.200 | L6: Ha : | M6: µd | N6: ≠ | O6: =O5 -> 0.0 | R6: Bin Step Size | S6: =(S5-S4)/J24 -> 0.70 | X6: -2.2
A7: 62 | B7: 62.8 | C7: -0.800 | F7: =COUNT(C:C) -> 10 | G7: =AVERAGEIF(C:C,"<>#N/A") -> -2.000 | H7: =_xlfn.STDEV.S(X:X) -> 1.370 | I7: =H7/SQRT(F7) -> 0.433 | L7: Sample Mean of the Differences (d-bar) | M7: Test Statistic ( t ) | N7: Degrees of Freedom ( df ) | O7: P-value | U7: X-axis of Graph | V7: Y-axis of Graph | X7: -0.8
A8: 61.8 | B8: 66.4 | C8: -4.600 | S8: Bin Number | T8: Number of Values in Bin | U8: =U9 -> -4.6 | V8: 0 | X8: -4.6
A9: 63.4 | B9: 66 | C9: -2.600 | G9: Graphical Summaries of the Differences | R9: First Bin Start | S9: 1 | T9: =COUNTIF(C:C,"<="&U10) -> 1 | U9: =S4 -> -4.6 | V9: =T9 -> 1 | X9: -2.6
A10: 64.6 | B10: 66.1 | C10: -1.500 | L10: =G7 -> -2.000 | M10: =(G7-$O$5)/I7 -> -4.618 | N10: =F7-1 -> 9 | O10: =IF(N6="≠",2*_xlfn.T.DIST.RT(ABS(M10),N10),IF(N6="<",_xlfn.T.DIST(M10,N10,TRUE),_xlfn.T.DIST.RT(M10,N10))) -> 0.001 | U10: =U9+$S$6 -> -3.90 | V10: =V9 -> 1 | X10: -1.5
A11: 63.8 | B11: 63.5 | C11: 0.300 | U11: =IF(S9>$J$24,"",U10) -> -3.9 | V11: =IF(S9>$J$24,"",0) -> 0 | X11: 0.3
L12: 95% | M12: Confidence Interval for the True Mean of the Differences | R12: Second Bin Start | S12: 2 | T12: =COUNTIF(C:C,"<="&U13) -> 1 | U12: =IF(S12>$J$24,U11,U10) -> -3.9 | V12: =IF(S12>$J$24,V11,V13) -> 0
L13: Point Estimate (Mean of the Differences} | M13: Margin of Error | N13: Confidence Interval | U13: =IF(S12>$J$24,U12,U12+$S$6) -> -3.2 | V13: =IF(S12>$J$24,V12,T12-T9) -> 0
N14: Lower Bound | O14: Upper Bound | U14: =IF(S12>$J$24,U13,U13) -> -3.2 | V14: =IF(S12>$J$24,V13,0) -> 0
L15: =G7 -> -2.000 | M15: =TINV(1-$L$12,N10)*I7 -> 0.980 | N15: =L15-M15 -> -2.980 | O15: =L15+M15 -> -1.020 | R15: Third Bin Start | S15: 3 | T15: =COUNTIF(C:C,"<="&U16) -> 4 | U15: =IF(S15>$J$24,U14,U13) -> -3.2 | V15: =IF(S15>$J$24,V14,V16) -> 3
M16: ="t*=±"&ROUND(_xlfn.T.INV.2T(1-L12,N10),3) -> t*=±2.262 | U16: =IF(S15>$J$24,U15,U15+$S$6) -> -2.5 | V16: =IF(S15>$J$24,V15,T15-T12) -> 3
U17: =IF(S15>$J$24,U16,U16) -> -2.5 | V17: =IF(S15>$J$24,V16,0) -> 0
S18: 4 | T18: =COUNTIF(C:C,"<="&U19) -> 6 | U18: =IF(S18>$J$24,U17,U16) -> -2.5 | V18: =IF(S18>$J$24,V17,V19) -> 2
U19: =IF(S18>$J$24,U18,U18+$S$6) -> -1.8 | V19: =IF(S18>$J$24,V18,T18-T15) -> 2
U20: =IF(S18>$J$24,U19,U19) -> -1.8 | V20: =IF(S18>$J$24,V19,0) -> 0
S21: 5 | T21: =COUNTIF(C:C,"<="&U22) -> 7 | U21: =IF(S21>$J$24,U20,U19) -> -1.8 | V21: =IF(S21>$J$24,V20,V22) -> 1
U22: =IF(S21>$J$24,U21,U21+$S$6) -> -1.1 | V22: =IF(S21>$J$24,V21,T21-T18) -> 1
U23: =IF(S21>$J$24,U22,U22) -> -1.1 | V23: =IF(S21>$J$24,V22,0) -> 0
H24: Number of Bins for Histogram: | J24: 7 | S24: 6 | T24: =COUNTIF(C:C,"<="&U25) -> 9 | U24: =IF(S24>$J$24,U23,U22) -> -1.1 | V24: =IF(S24>$J$24,V23,V25) -> 2
U25: =IF(S24>$J$24,U24,U24+$S$6) -> -0.4 | V25: =IF(S24>$J$24,V24,T24-T21) -> 2
U26: =IF(S24>$J$24,U25,U25) -> -0.4 | V26: =IF(S24>$J$24,V25,0) -> 0
S27: 7 | T27: =COUNTIF(C:C,"<="&U28) -> 10 | U27: =IF(S27>$J$24,U26,U25) -> -0.4 | V27: =IF(S27>$J$24,V26,V28) -> 1
U28: =IF(S27>$J$24,U27,U27+$S$6) -> 0.3 | V28: =IF(S27>$J$24,V27,T27-T24) -> 1
U29: =IF(S27>$J$24,U28,U28) -> 0.3 | V29: =IF(S27>$J$24,V28,0) -> 0
S30: 8 | T30: =COUNTIF(C:C,"<="&U31) -> 10 | U30: =IF(S30>$J$24,U29,U28) -> 0.3 | V30: =IF(S30>$J$24,V29,V31) -> 0
U31: =IF(S30>$J$24,U30,U30+$S$6) -> 0.3 | V31: =IF(S30>$J$24,V30,T30-T27) -> 0
U32: =IF(S30>$J$24,U31,U31) -> 0.3 | V32: =IF(S30>$J$24,V31,0) -> 0
S33: 9 | T33: =COUNTIF(C:C,"<="&U34) -> 10 | U33: =IF(S33>$J$24,U32,U31) -> 0.3 | V33: =IF(S33>$J$24,V32,V34) -> 0
U34: =IF(S33>$J$24,U33,U33+$S$6) -> 0.3 | V34: =IF(S33>$J$24,V33,T33-T30) -> 0
U35: =IF(S33>$J$24,U34,U34) -> 0.3 | V35: =IF(S33>$J$24,V34,0) -> 0
S36: 10 | T36: =COUNTIF(C:C,"<="&U37) -> 10 | U36: =IF(S36>$J$24,U35,U34) -> 0.3 | V36: =IF(S36>$J$24,V35,V37) -> 0
U37: =IF(S36>$J$24,U36,U36+$S$6) -> 0.3 | V37: =IF(S36>$J$24,V36,T36-T33) -> 0
U38: =IF(S36>$J$24,U37,U37) -> 0.3 | V38: =IF(S36>$J$24,V37,0) -> 0
S39: 11 | T39: =COUNTIF(C:C,"<="&U40) -> 10 | U39: =IF(S39>$J$24,U38,U37) -> 0.3 | V39: =IF(S39>$J$24,V38,V40) -> 0
U40: =IF(S39>$J$24,U39,U39+$S$6) -> 0.3 | V40: =IF(S39>$J$24,V39,T39-T36) -> 0
U41: =IF(S39>$J$24,U40,U40) -> 0.3 | V41: =IF(S39>$J$24,V40,0) -> 0
S42: 12 | T42: =COUNTIF(C:C,"<="&U43) -> 10 | U42: =IF(S42>$J$24,U41,U40) -> 0.3 | V42: =IF(S42>$J$24,V41,V43) -> 0
U43: =IF(S42>$J$24,U42,U42+$S$6) -> 0.3 | V43: =IF(S42>$J$24,V42,T42-T39) -> 0
U44: =IF(S42>$J$24,U43,U43) -> 0.3 | V44: =IF(S42>$J$24,V43,0) -> 0
S45: 13 | T45: =COUNTIF(C:C,"<="&U46) -> 10 | U45: =IF(S45>$J$24,U44,U43) -> 0.3 | V45: =IF(S45>$J$24,V44,V46) -> 0
U46: =IF(S45>$J$24,U45,U45+$S$6) -> 0.3 | V46: =IF(S45>$J$24,V45,T45-T42) -> 0
U47: =IF(S45>$J$24,U46,U46) -> 0.3 | V47: =IF(S45>$J$24,V46,0) -> 0
S48: 14 | T48: =COUNTIF(C:C,"<="&U49) -> 10 | U48: =IF(S48>$J$24,U47,U46) -> 0.3 | V48: =IF(S48>$J$24,V47,V49) -> 0
U49: =IF(S48>$J$24,U48,U48+$S$6) -> 0.3 | V49: =IF(S48>$J$24,V48,T48-T45) -> 0
U50: =IF(S48>$J$24,U49,U49) -> 0.3 | V50: =IF(S48>$J$24,V49,0) -> 0
S51: 15 | T51: =COUNTIF(C:C,"<="&U52) -> 10 | U51: =IF(S51>$J$24,U50,U49) -> 0.3 | V51: =IF(S51>$J$24,V50,V52) -> 0
U52: =IF(S51>$J$24,U51,U51+$S$6) -> 0.3 | V52: =IF(S51>$J$24,V51,T51-T48) -> 0
U53: =IF(S51>$J$24,U52,U52) -> 0.3 | V53: =IF(S51>$J$24,V52,0) -> 0
C67: =IF(OR(ISBLANK(A67),ISBLANK(B67)),NA(),A67-B67) ->  | X67: =IFERROR(C67,"") -> 
C131: =IF(OR(ISBLANK(A131),ISBLANK(B131)),NA(),A131-B131) ->  | X131: =IFERROR(C131,"") -> 
C195: =IF(OR(ISBLANK(A195),ISBLANK(B195)),NA(),A195-B195) ->  | X195: =IFERROR(C195,"") -> 
C259: =IF(OR(ISBLANK(A259),ISBLANK(B259)),NA(),A259-B259) ->  | X259: =IFERROR(C259,"") -> 
C323: =IF(OR(ISBLANK(A323),ISBLANK(B323)),NA(),A323-B323) ->  | X323: =IFERROR(C323,"") -> 
C387: =IF(OR(ISBLANK(A387),ISBLANK(B387)),NA(),A387-B387) ->  | X387: =IFERROR(C387,"") -> 
C451: =IF(OR(ISBLANK(A451),ISBLANK(B451)),NA(),A451-B451) ->  | X451: =IFERROR(C451,"") -> 
C515: =IF(OR(ISBLANK(A515),ISBLANK(B515)),NA(),A515-B515) ->  | X515: =IFERROR(C515,"") -> 
C579: =IF(OR(ISBLANK(A579),ISBLANK(B579)),NA(),A579-B579) ->  | X579: =IFERROR(C579,"") -> 
C643: =IF(OR(ISBLANK(A643),ISBLANK(B643)),NA(),A643-B643) ->  | X643: =IFERROR(C643,"") -> 
C707: =IF(OR(ISBLANK(A707),ISBLANK(B707)),NA(),A707-B707) ->  | X707: =IFERROR(C707,"") -> 
C771: =IF(OR(ISBLANK(A771),ISBLANK(B771)),NA(),A771-B771) ->  | X771: =IFERROR(C771,"") -> 
C835: =IF(OR(ISBLANK(A835),ISBLANK(B835)),NA(),A835-B835) ->  | X835: =IFERROR(C835,"") -> 
C899: =IF(OR(ISBLANK(A899),ISBLANK(B899)),NA(),A899-B899) ->  | X899: =IFERROR(C899,"") -> 
C963: =IF(OR(ISBLANK(A963),ISBLANK(B963)),NA(),A963-B963) ->  | X963: =IFERROR(C963,"") -> 

Sheet Independent Samples t Test
A1: Data 1 (Paste Below) | B1: Data 2 (Paste Below) | F1: Making Inference: Independent-samples t-Test | U1: For those interested… Code to make the histogram on the left: | Y1: Alternatives
A2: 65 | B2: 50 | Y2: >
A3: 63 | B3: 31 | Y3: ≠
A4: 52 | B4: 61 | H4: Numerical Summaries | O4: Hypothesis Test | U4: Histogram Start Value | V4: =MIN(A:A) -> 43 | Y4: <
A5: 63 | B5: 32 | H5: n | I5: Sample Means | J5: Sample Standard Deviations | K5: Standard Errors of the Mean | O5: H0 : | P5: µ1 | Q5: = | R5: µ2 | U5: Histogram Stop Value | V5: =MAX(A:A) -> 70
A6: 59 | B6: 48 | O6: Ha : | P6: µ1 | Q6: ≠ | R6: µ2 | U6: Bin Step Size | V6: =(V5-V4)/J34 -> 3.86
A7: 70 | B7: 13 | H7: =COUNT(A:A) -> 15 | I7: =AVERAGE(A:A) -> 57.667 | J7: =_xlfn.STDEV.S(A:A) -> 7.287 | K7: =J7/SQRT(H7) -> 1.881 | L7: Data 1 | O7: Difference of the sample means | P7: Test Statistic ( t ) | Q7: Degrees of Freedom ( df ) | R7: P-value | X7: X-axis of Graph | Y7: Y-axis of Graph
A8: 48 | B8: 58 | H8: =COUNT(B:B) -> 12 | I8: =AVERAGE(B:B) -> 40.333 | J8: =_xlfn.STDEV.S(B:B) -> 14.054 | K8: =J8/SQRT(H8) -> 4.057 | L8: Data 2 | V8: Bin Number | W8: Number of Values in Bin | X8: =X9 -> 43 | Y8: 0
A9: 43 | B9: 44 | U9: First Bin Start | V9: 1 | W9: =COUNTIF(A:A,"<="&X10) -> 1 | X9: =V4 -> 43 | Y9: =W9 -> 1
A10: 65 | B10: 27 | H10: Graphical Summaries | O10: =I7-I8 -> 17.333 | P10: =O10/SQRT(K7^2+K8^2) -> 3.876 | Q10: =(K7^2+K8^2)^2/(1/(H7-1)*K7^4+1/(H8-1)*K8^4) -> 15.670 | R10: =IF(Q6="≠",2*_xlfn.T.DIST.RT(ABS(P10),Q10),IF(Q6="<",_xlfn.T.DIST(P10,Q10,TRUE),_xlfn.T.DIST.RT(P10,Q10))) -> 0.001 | X10: =X9+$V$6 -> 46.86 | Y10: =Y9 -> 1
A11: 50 | B11: 51 | X11: =IF(V9>$J$34,"",X10) -> 46.85714286 | Y11: =IF(V9>$J$34,"",0) -> 0
A12: 57 | B12: 36 | O12: 95% | P12: Confidence Interval for the True Difference of the Means | U12: Second Bin Start | V12: 2 | W12: =IF(V12>$J$34,"",COUNTIF(A:A,"<="&X13)) -> 3 | X12: =IF(V12>$J$34,X11,X10) -> 46.85714286 | Y12: =IF(V12>$J$34,Y11,Y13) -> 2
A13: 54 | B13: 33 | O13: Point Estimate (Difference of the Means) | P13: Margin of Error | Q13: Confidence Interval | X13: =IF(V12>$J$34,X12,X12+$V$6) -> 50.71428571 | Y13: =IF(V12>$J$34,Y12,W12-W9) -> 2
A14: 61 | Q14: Lower Bound | R14: Upper Bound | X14: =IF(V12>$J$34,X13,X13) -> 50.71428571 | Y14: =IF(V12>$J$34,Y13,0) -> 0
A15: 57 | O15: =I7-I8 -> 17.333 | P15: =TINV(1-$O$12,Q10)*SQRT(K7^2+K8^2) -> 9.532 | Q15: =O15-P15 -> 7.801 | R15: =O15+P15 -> 26.865 | U15: Third Bin Start | V15: 3 | W15: =IF(V15>$J$34,"",COUNTIF(A:A,"<="&X16)) -> 5 | X15: =IF(V15>$J$34,X14,X13) -> 50.71428571 | Y15: =IF(V15>$J$34,Y14,Y16) -> 2
A16: 58 | P16: ="t*=±"&ROUND(_xlfn.T.INV.2T(1-O12,Q10),3) -> t*=±2.131 | X16: =IF(V15>$J$34,X15,X15+$V$6) -> 54.57142857 | Y16: =IF(V15>$J$34,Y15,W15-W12) -> 2
X17: =IF(V15>$J$34,X16,X16) -> 54.57142857 | Y17: =IF(V15>$J$34,Y16,0) -> 0
V18: 4 | W18: =IF(V18>$J$34,"",COUNTIF(A:A,"<="&X19)) -> 8 | X18: =IF(V18>$J$34,X17,X16) -> 54.57142857 | Y18: =IF(V18>$J$34,Y17,Y19) -> 3
X19: =IF(V18>$J$34,X18,X18+$V$6) -> 58.42857143 | Y19: =IF(V18>$J$34,Y18,W18-W15) -> 3
X20: =IF(V18>$J$34,X19,X19) -> 58.42857143 | Y20: =IF(V18>$J$34,Y19,0) -> 0
V21: 5 | W21: =IF(V21>$J$34,"",COUNTIF(A:A,"<="&X22)) -> 10 | X21: =IF(V21>$J$34,X20,X19) -> 58.42857143 | Y21: =IF(V21>$J$34,Y20,Y22) -> 2
X22: =IF(V21>$J$34,X21,X21+$V$6) -> 62.28571429 | Y22: =IF(V21>$J$34,Y21,W21-W18) -> 2
X23: =IF(V21>$J$34,X22,X22) -> 62.28571429 | Y23: =IF(V21>$J$34,Y22,0) -> 0
I24: Histogram of Data 1 | K24: Histogram of Data 2 | V24: 6 | W24: =IF(V24>$J$34,"",COUNTIF(A:A,"<="&X25)) -> 14 | X24: =IF(V24>$J$34,X23,X22) -> 62.28571429 | Y24: =IF(V24>$J$34,Y23,Y25) -> 4
X25: =IF(V24>$J$34,X24,X24+$V$6) -> 66.14285714 | Y25: =IF(V24>$J$34,Y24,W24-W21) -> 4
X26: =IF(V24>$J$34,X25,X25) -> 66.14285714 | Y26: =IF(V24>$J$34,Y25,0) -> 0
V27: 7 | W27: =IF(V27>$J$34,"",COUNTIF(A:A,"<="&X28)) -> 15 | X27: =IF(V27>$J$34,X26,X25) -> 66.14285714 | Y27: =IF(V27>$J$34,Y26,Y28) -> 1
X28: =IF(V27>$J$34,X27,X27+$V$6) -> 70 | Y28: =IF(V27>$J$34,Y27,W27-W24) -> 1
X29: =IF(V27>$J$34,X28,X28) -> 70 | Y29: =IF(V27>$J$34,Y28,0) -> 0
V30: 8 | W30: =IF(V30>$J$34,"",COUNTIF(A:A,"<="&X31)) ->  | X30: =IF(V30>$J$34,X29,X28) -> 70 | Y30: =IF(V30>$J$34,Y29,Y31) -> 0
X31: =IF(V30>$J$34,X30,X30+$V$6) -> 70 | Y31: =IF(V30>$J$34,Y30,W30-W27) -> 0
X32: =IF(V30>$J$34,X31,X31) -> 70 | Y32: =IF(V30>$J$34,Y31,0) -> 0
V33: 9 | W33: =IF(V33>$J$34,"",COUNTIF(A:A,"<="&X34)) ->  | X33: =IF(V33>$J$34,X32,X31) -> 70 | Y33: =IF(V33>$J$34,Y32,Y34) -> 0
I34: Bins for histograms: | J34: 7 | X34: =IF(V33>$J$34,X33,X33+$V$6) -> 70 | Y34: =IF(V33>$J$34,Y33,W33-W30) -> 0
X35: =IF(V33>$J$34,X34,X34) -> 70 | Y35: =IF(V33>$J$34,Y34,0) -> 0
V36: 10 | W36: =IF(V36>$J$34,"",COUNTIF(A:A,"<="&X37)) ->  | X36: =IF(V36>$J$34,X35,X34) -> 70 | Y36: =IF(V36>$J$34,Y35,Y37) -> 0
X37: =IF(V36>$J$34,X36,X36+$V$6) -> 70 | Y37: =IF(V36>$J$34,Y36,W36-W33) -> 0
X38: =IF(V36>$J$34,X37,X37) -> 70 | Y38: =IF(V36>$J$34,Y37,0) -> 0
V39: 11 | W39: =IF(V39>$J$34,"",COUNTIF(A:A,"<="&X40)) ->  | X39: =IF(V39>$J$34,X38,X37) -> 70 | Y39: =IF(V39>$J$34,Y38,Y40) -> 0
X40: =IF(V39>$J$34,X39,X39+$V$6) -> 70 | Y40: =IF(V39>$J$34,Y39,W39-W36) -> 0
X41: =IF(V39>$J$34,X40,X40) -> 70 | Y41: =IF(V39>$J$34,Y40,0) -> 0
V42: 12 | W42: =IF(V42>$J$34,"",COUNTIF(A:A,"<="&X43)) ->  | X42: =IF(V42>$J$34,X41,X40) -> 70 | Y42: =IF(V42>$J$34,Y41,Y43) -> 0
X43: =IF(V42>$J$34,X42,X42+$V$6) -> 70 | Y43: =IF(V42>$J$34,Y42,W42-W39) -> 0
X44: =IF(V42>$J$34,X43,X43) -> 70 | Y44: =IF(V42>$J$34,Y43,0) -> 0
V45: 13 | W45: =IF(V45>$J$34,"",COUNTIF(A:A,"<="&X46)) ->  | X45: =IF(V45>$J$34,X44,X43) -> 70 | Y45: =IF(V45>$J$34,Y44,Y46) -> 0
X46: =IF(V45>$J$34,X45,X45+$V$6) -> 70 | Y46: =IF(V45>$J$34,Y45,W45-W42) -> 0
X47: =IF(V45>$J$34,X46,X46) -> 70 | Y47: =IF(V45>$J$34,Y46,0) -> 0
V48: 14 | W48: =IF(V48>$J$34,"",COUNTIF(A:A,"<="&X49)) ->  | X48: =IF(V48>$J$34,X47,X46) -> 70 | Y48: =IF(V48>$J$34,Y47,Y49) -> 0
X49: =IF(V48>$J$34,X48,X48+$V$6) -> 70 | Y49: =IF(V48>$J$34,Y48,W48-W45) -> 0
X50: =IF(V48>$J$34,X49,X49) -> 70 | Y50: =IF(V48>$J$34,Y49,0) -> 0
V51: 15 | W51: =IF(V51>$J$34,"",COUNTIF(A:A,"<="&X52)) ->  | X51: =IF(V51>$J$34,X50,X49) -> 70 | Y51: =IF(V51>$J$34,Y50,Y52) -> 0
X52: =IF(V51>$J$34,X51,X51+$V$6) -> 70 | Y52: =IF(V51>$J$34,Y51,W51-W48) -> 0
X53: =IF(V51>$J$34,X52,X52) -> 70 | Y53: =IF(V51>$J$34,Y52,0) -> 0
U56: Second Histogram
U58: Histogram Start Value | V58: =MIN(B:B) -> 13
U59: Histogram Stop Value | V59: =MAX(B:B) -> 61
U60: Bin Step Size | V60: =(V59-V58)/$J$34 -> 6.86
X61: X-axis of Graph | Y61: Y-axis of Graph
V62: Bin Number | W62: Number of Values in Bin | X62: =X63 -> 13 | Y62: 0
U63: First Bin Start | V63: 1 | W63: =COUNTIF(B:B,"<="&X64) -> 1 | X63: =V58 -> 13 | Y63: =W63 -> 1
X64: =X63+$V$60 -> 19.86 | Y64: =Y63 -> 1
X65: =IF(V63>$J$34,"",X64) -> 19.85714286 | Y65: =IF(V63>$J$34,"",0) -> 0
U66: Second Bin Start | V66: 2 | W66: =COUNTIF(B:B,"<="&X67) -> 1 | X66: =IF(V66>$J$34,X65,X64) -> 19.85714286 | Y66: =IF(V66>$J$34,Y65,Y67) -> 0
X67: =IF(V66>$J$34,X66,X66+$V$60) -> 26.71428571 | Y67: =IF(V66>$J$34,Y66,W66-W63) -> 0
X68: =IF(V66>$J$34,X67,X67) -> 26.71428571 | Y68: =IF(V66>$J$34,Y67,0) -> 0
U69: Third Bin Start | V69: 3 | W69: =COUNTIF(B:B,"<="&X70) -> 5 | X69: =IF(V69>$J$34,X68,X67) -> 26.71428571 | Y69: =IF(V69>$J$34,Y68,Y70) -> 4
X70: =IF(V69>$J$34,X69,X69+$V$60) -> 33.57142857 | Y70: =IF(V69>$J$34,Y69,W69-W66) -> 4
X71: =IF(V69>$J$34,X70,X70) -> 33.57142857 | Y71: =IF(V69>$J$34,Y70,0) -> 0
V72: 4 | W72: =COUNTIF(B:B,"<="&X73) -> 6 | X72: =IF(V72>$J$34,X71,X70) -> 33.57142857 | Y72: =IF(V72>$J$34,Y71,Y73) -> 1
X73: =IF(V72>$J$34,X72,X72+$V$60) -> 40.42857143 | Y73: =IF(V72>$J$34,Y72,W72-W69) -> 1
X74: =IF(V72>$J$34,X73,X73) -> 40.42857143 | Y74: =IF(V72>$J$34,Y73,0) -> 0
V75: 5 | W75: =COUNTIF(B:B,"<="&X76) -> 7 | X75: =IF(V75>$J$34,X74,X73) -> 40.42857143 | Y75: =IF(V75>$J$34,Y74,Y76) -> 1
X76: =IF(V75>$J$34,X75,X75+$V$60) -> 47.28571429 | Y76: =IF(V75>$J$34,Y75,W75-W72) -> 1
X77: =IF(V75>$J$34,X76,X76) -> 47.28571429 | Y77: =IF(V75>$J$34,Y76,0) -> 0
V78: 6 | W78: =COUNTIF(B:B,"<="&X79) -> 10 | X78: =IF(V78>$J$34,X77,X76) -> 47.28571429 | Y78: =IF(V78>$J$34,Y77,Y79) -> 3
X79: =IF(V78>$J$34,X78,X78+$V$60) -> 54.14285714 | Y79: =IF(V78>$J$34,Y78,W78-W75) -> 3
X80: =IF(V78>$J$34,X79,X79) -> 54.14285714 | Y80: =IF(V78>$J$34,Y79,0) -> 0
V81: 7 | W81: =COUNTIF(B:B,"<="&X82) -> 12 | X81: =IF(V81>$J$34,X80,X79) -> 54.14285714 | Y81: =IF(V81>$J$34,Y80,Y82) -> 2
X82: =IF(V81>$J$34,X81,X81+$V$60) -> 61 | Y82: =IF(V81>$J$34,Y81,W81-W78) -> 2
X83: =IF(V81>$J$34,X82,X82) -> 61 | Y83: =IF(V81>$J$34,Y82,0) -> 0
V84: 8 | W84: =COUNTIF(B:B,"<="&X85) -> 12 | X84: =IF(V84>$J$34,X83,X82) -> 61 | Y84: =IF(V84>$J$34,Y83,Y85) -> 0
X85: =IF(V84>$J$34,X84,X84+$V$60) -> 61 | Y85: =IF(V84>$J$34,Y84,W84-W81) -> 0
X86: =IF(V84>$J$34,X85,X85) -> 61 | Y86: =IF(V84>$J$34,Y85,0) -> 0
V87: 9 | W87: =COUNTIF(B:B,"<="&X88) -> 12 | X87: =IF(V87>$J$34,X86,X85) -> 61 | Y87: =IF(V87>$J$34,Y86,Y88) -> 0
X88: =IF(V87>$J$34,X87,X87+$V$60) -> 61 | Y88: =IF(V87>$J$34,Y87,W87-W84) -> 0
X89: =IF(V87>$J$34,X88,X88) -> 61 | Y89: =IF(V87>$J$34,Y88,0) -> 0
V90: 10 | W90: =COUNTIF(B:B,"<="&X91) -> 12 | X90: =IF(V90>$J$34,X89,X88) -> 61 | Y90: =IF(V90>$J$34,Y89,Y91) -> 0
X91: =IF(V90>$J$34,X90,X90+$V$60) -> 61 | Y91: =IF(V90>$J$34,Y90,W90-W87) -> 0
X92: =IF(V90>$J$34,X91,X91) -> 61 | Y92: =IF(V90>$J$34,Y91,0) -> 0
V93: 11 | W93: =COUNTIF(B:B,"<="&X94) -> 12 | X93: =IF(V93>$J$34,X92,X91) -> 61 | Y93: =IF(V93>$J$34,Y92,Y94) -> 0
X94: =IF(V93>$J$34,X93,X93+$V$60) -> 61 | Y94: =IF(V93>$J$34,Y93,W93-W90) -> 0
X95: =IF(V93>$J$34,X94,X94) -> 61 | Y95: =IF(V93>$J$34,Y94,0) -> 0
V96: 12 | W96: =COUNTIF(B:B,"<="&X97) -> 12 | X96: =IF(V96>$J$34,X95,X94) -> 61 | Y96: =IF(V96>$J$34,Y95,Y97) -> 0
X97: =IF(V96>$J$34,X96,X96+$V$60) -> 61 | Y97: =IF(V96>$J$34,Y96,W96-W93) -> 0
X98: =IF(V96>$J$34,X97,X97) -> 61 | Y98: =IF(V96>$J$34,Y97,0) -> 0
V99: 13 | W99: =COUNTIF(B:B,"<="&X100) -> 12 | X99: =IF(V99>$J$34,X98,X97) -> 61 | Y99: =IF(V99>$J$34,Y98,Y100) -> 0
X100: =IF(V99>$J$34,X99,X99+$V$60) -> 61 | Y100: =IF(V99>$J$34,Y99,W99-W96) -> 0
X101: =IF(V99>$J$34,X100,X100) -> 61 | Y101: =IF(V99>$J$34,Y100,0) -> 0
V102: 14 | W102: =COUNTIF(B:B,"<="&X103) -> 12 | X102: =IF(V102>$J$34,X101,X100) -> 61 | Y102: =IF(V102>$J$34,Y101,Y103) -> 0
X103: =IF(V102>$J$34,X102,X102+$V$60) -> 61 | Y103: =IF(V102>$J$34,Y102,W102-W99) -> 0
X104: =IF(V102>$J$34,X103,X103) -> 61 | Y104: =IF(V102>$J$34,Y103,0) -> 0
V105: 15 | W105: =COUNTIF(B:B,"<="&X106) -> 12 | X105: =IF(V105>$J$34,X104,X103) -> 61 | Y105: =IF(V105>$J$34,Y104,Y106) -> 0
X106: =IF(V105>$J$34,X105,X105+$V$60) -> 61 | Y106: =IF(V105>$J$34,Y105,W105-W102) -> 0
X107: =IF(V105>$J$34,X106,X106) -> 61 | Y107: =IF(V105>$J$34,Y106,0) -> 0

Sheet ANOVA
A1: Data 1 (Paste Below) | B1: Data 2 (Paste Below) | C1: Data 3 (Paste Below) | D1: Data 4 (Paste Below) | E1: Data 5 (Paste Below) | F1: Data 6 (Paste Below) | G1: Data 7 (Paste Below) | I1: Making Inference: Analysis of Variance (ANOVA) | X1: For those interested… Code to make the histogram on the left: | AB1: Alternatives | AD1: Data Group | AE1: Column
A2: 4 | B2: 5 | C2: 6 | D2: 4 | AB2: > | AD2: =I7 -> Data 1 | AE2: A
A3: 6 | B3: 4 | C3: 5 | D3: 6 | X3: Column to Use | Y3: =VLOOKUP(N30,AD1:AE8,2,0) -> A | AB3: ≠ | AD3: =I8 -> Data 2 | AE3: B
A4: 4 | B4: 5 | C4: 3 | D4: 4 | J4: Numerical Summary of the Data | P4: Hypothesis Test | X4: Histogram Start Value | Y4: =MIN(INDIRECT(CONCATENATE(Y3,":",Y3))) -> 4 | AB4: < | AD4: Data 3 | AE4: C
A5: 6 | B5: 6 | C5: 7 | D5: 6 | J5: n | K5: Sample Means | L5: Sample Standard Deviations | M5: Sample Variances | N5: Overall Mean: | P5: H0 : | Q5: All means are equal | X5: Histogram Stop Value | Y5: =MAX(INDIRECT(CONCATENATE(Y3,":",Y3))) -> 7 | AD5: Data 4 | AE5: D
A6: 5 | C6: 4 | D6: 5 | P6: Ha : | Q6: At least one mean differs | X6: Bin Step Size | Y6: =(Y5-Y4)/Y7 -> 0.60 | AD6: Data 5 | AE6: E
A7: 7 | C7: 1 | D7: 7 | I7: Data 1 | J7: =IF(COUNT(A:A)>0,COUNT(A:A),"") -> 7 | K7: =IF(ISNUMBER(J7),AVERAGE(A:A),"") -> 5.286 | L7: =IF(AND(ISNUMBER(J7),J7>=2),STDEV(A:A),"") -> 1.113 | M7: =IF(ISNUMBER(L7),L7^2,"") -> 1.238 | N7: =SUM(P61:P67)/SUM(J7:J13) -> 5.065 | P7: Source of Variation | Q7: Sum of Squares | R7: Degrees of Freedom | S7: Mean Squares | T7: Test Statistic (F) | U7: P-value | X7: Number of Bins | Y7: =L43 -> 5.00 | AD7: Data 6 | AE7: F
A8: 5 | C8: 4 | D8: 5 | I8: Data 2 | J8: =IF(COUNT(B:B)>0,COUNT(B:B),"") -> 4 | K8: =IF(ISNUMBER(J8),AVERAGE(B:B),"") -> 5.000 | L8: =IF(AND(ISNUMBER(J8),J8>=2),STDEV(B:B),"") -> 0.816 | M8: =IF(ISNUMBER(L8),L8^2,"") -> 0.667 | AA8: X-axis of Graph | AB8: Y-axis of Graph | AD8: Data 7 | AE8: G
C9: 6 | I9: Data 3 | J9: =IF(COUNT(C:C)>0,COUNT(C:C),"") -> 13 | K9: =IF(ISNUMBER(J9),AVERAGE(C:C),"") -> 4.846 | L9: =IF(AND(ISNUMBER(J9),J9>=2),STDEV(C:C),"") -> 1.676 | M9: 2.808 | P9: Between Groups | Q9: =SUM(R61:R67) -> 1.322 | R9: =COUNT(J7:J13)-1 -> 3 | S9: =Q9/R9 -> 0.441 | T9: =S9/S10 -> 0.235 | U9: =_xlfn.F.DIST.RT(T9,R9,R10) -> 0.871 | Y9: Bin Number | Z9: Number of Values in Bin | AA9: =AA10 -> 4 | AB9: 0
C10: 4 | I10: Data 4 | J10: =IF(COUNT(D:D)>0,COUNT(D:D),"") -> 7 | K10: =IF(ISNUMBER(J10),AVERAGE(D:D),"") -> 5.286 | L10: =IF(AND(ISNUMBER(J10),J10>=2),STDEV(D:D),"") -> 1.113 | M10: 1.238 | P10: Within Groups | Q10: =SUM(T61:T67) -> 50.549 | R10: =R11-R9 -> 27 | S10: =Q10/R10 -> 1.872 | X10: First Bin Start | Y10: 1 | Z10: =COUNTIF(INDIRECT(CONCATENATE($Y$3,":",$Y$3)),"<="&AA11) -> 2 | AA10: =Y4 -> 4 | AB10: =Z10 -> 2
C11: 6 | I11: Data 5 | J11: =IF(COUNT(E:E)>0,COUNT(E:E),"") ->  | K11: =IF(ISNUMBER(J11),AVERAGE(E:E),"") ->  | L11: =IF(AND(ISNUMBER(J11),J11>=2),STDEV(E:E),"") ->  | P11: Total | Q11: =Q10+Q9 -> 51.871 | R11: =SUM(J7:J13)-1 -> 30 | AA11: =AA10+$Y$6 -> 4.60 | AB11: =AB10 -> 2
C12: 5 | I12: Data 6 | J12: =IF(COUNT(F:F)>0,COUNT(F:F),"") ->  | K12: =IF(ISNUMBER(J12),AVERAGE(F:F),"") ->  | L12: =IF(AND(ISNUMBER(J12),J12>=2),STDEV(F:F),"") ->  | AA12: =IF(Y10>$Y$7,"",AA11) -> 4.6 | AB12: =IF(Y10>$Y$7,"",0) -> 0
C13: 7 | I13: Data 7 | J13: =IF(COUNT(G:G)>0,COUNT(G:G),"") ->  | K13: =IF(ISNUMBER(J13),AVERAGE(G:G),"") ->  | L13: =IF(AND(ISNUMBER(J13),J13>=2),STDEV(G:G),"") ->  | X13: Second Bin Start | Y13: 2 | Z13: =COUNTIF(INDIRECT(CONCATENATE($Y$3,":",$Y$3)),"<="&AA14) -> 4 | AA13: =IF(Y13>$Y$7,AA12,AA11) -> 4.6 | AB13: =IF(Y13>$Y$7,AB12,AB14) -> 2
C14: 5 | AA14: =IF(Y13>$Y$7,AA13,AA13+$Y$6) -> 5.2 | AB14: =IF(Y13>$Y$7,AB13,Z13-Z10) -> 2
J15: Graphical Summary of the Data | AA15: =IF(Y13>$Y$7,AA14,AA14) -> 5.2 | AB15: =IF(Y13>$Y$7,AB14,0) -> 0
X16: Third Bin Start | Y16: 3 | Z16: =COUNTIF(INDIRECT(CONCATENATE($Y$3,":",$Y$3)),"<="&AA17) -> 4 | AA16: =IF(Y16>$Y$7,AA15,AA14) -> 5.2 | AB16: =IF(Y16>$Y$7,AB15,AB17) -> 0
AA17: =IF(Y16>$Y$7,AA16,AA16+$Y$6) -> 5.8 | AB17: =IF(Y16>$Y$7,AB16,Z16-Z13) -> 0
AA18: =IF(Y16>$Y$7,AA17,AA17) -> 5.8 | AB18: =IF(Y16>$Y$7,AB17,0) -> 0
Y19: 4 | Z19: =COUNTIF(INDIRECT(CONCATENATE($Y$3,":",$Y$3)),"<="&AA20) -> 6 | AA19: =IF(Y19>$Y$7,AA18,AA17) -> 5.8 | AB19: =IF(Y19>$Y$7,AB18,AB20) -> 2
AA20: =IF(Y19>$Y$7,AA19,AA19+$Y$6) -> 6.4 | AB20: =IF(Y19>$Y$7,AB19,Z19-Z16) -> 2
AA21: =IF(Y19>$Y$7,AA20,AA20) -> 6.4 | AB21: =IF(Y19>$Y$7,AB20,0) -> 0
Y22: 5 | Z22: =COUNTIF(INDIRECT(CONCATENATE($Y$3,":",$Y$3)),"<="&AA23) -> 7 | AA22: =IF(Y22>$Y$7,AA21,AA20) -> 6.4 | AB22: =IF(Y22>$Y$7,AB21,AB23) -> 1
AA23: =IF(Y22>$Y$7,AA22,AA22+$Y$6) -> 7 | AB23: =IF(Y22>$Y$7,AB22,Z22-Z19) -> 1
AA24: =IF(Y22>$Y$7,AA23,AA23) -> 7 | AB24: =IF(Y22>$Y$7,AB23,0) -> 0
Y25: 6 | Z25: =COUNTIF(INDIRECT(CONCATENATE($Y$3,":",$Y$3)),"<="&AA26) -> 7 | AA25: =IF(Y25>$Y$7,AA24,AA23) -> 7 | AB25: =IF(Y25>$Y$7,AB24,AB26) -> 0
AA26: =IF(Y25>$Y$7,AA25,AA25+$Y$6) -> 7 | AB26: =IF(Y25>$Y$7,AB25,Z25-Z22) -> 0
AA27: =IF(Y25>$Y$7,AA26,AA26) -> 7 | AB27: =IF(Y25>$Y$7,AB26,0) -> 0
Y28: 7 | Z28: =COUNTIF(INDIRECT(CONCATENATE($Y$3,":",$Y$3)),"<="&AA29) -> 7 | AA28: =IF(Y28>$Y$7,AA27,AA26) -> 7 | AB28: =IF(Y28>$Y$7,AB27,AB29) -> 0
AA29: =IF(Y28>$Y$7,AA28,AA28+$Y$6) -> 7 | AB29: =IF(Y28>$Y$7,AB28,Z28-Z25) -> 0
N30: Data 1 | AA30: =IF(Y28>$Y$7,AA29,AA29) -> 7 | AB30: =IF(Y28>$Y$7,AB29,0) -> 0
K31: Histogram for Data | M31: Choose Data Group: | Y31: 8 | Z31: =COUNTIF(INDIRECT(CONCATENATE($Y$3,":",$Y$3)),"<="&AA32) -> 7 | AA31: =IF(Y31>$Y$7,AA30,AA29) -> 7 | AB31: =IF(Y31>$Y$7,AB30,AB32) -> 0
AA32: =IF(Y31>$Y$7,AA31,AA31+$Y$6) -> 7 | AB32: =IF(Y31>$Y$7,AB31,Z31-Z28) -> 0
AA33: =IF(Y31>$Y$7,AA32,AA32) -> 7 | AB33: =IF(Y31>$Y$7,AB32,0) -> 0
Y34: 9 | Z34: =COUNTIF(INDIRECT(CONCATENATE($Y$3,":",$Y$3)),"<="&AA35) -> 7 | AA34: =IF(Y34>$Y$7,AA33,AA32) -> 7 | AB34: =IF(Y34>$Y$7,AB33,AB35) -> 0
AA35: =IF(Y34>$Y$7,AA34,AA34+$Y$6) -> 7 | AB35: =IF(Y34>$Y$7,AB34,Z34-Z31) -> 0
AA36: =IF(Y34>$Y$7,AA35,AA35) -> 7 | AB36: =IF(Y34>$Y$7,AB35,0) -> 0
Y37: 10 | Z37: =COUNTIF(INDIRECT(CONCATENATE($Y$3,":",$Y$3)),"<="&AA38) -> 7 | AA37: =IF(Y37>$Y$7,AA36,AA35) -> 7 | AB37: =IF(Y37>$Y$7,AB36,AB38) -> 0
AA38: =IF(Y37>$Y$7,AA37,AA37+$Y$6) -> 7 | AB38: =IF(Y37>$Y$7,AB37,Z37-Z34) -> 0
AA39: =IF(Y37>$Y$7,AA38,AA38) -> 7 | AB39: =IF(Y37>$Y$7,AB38,0) -> 0
Y40: 11 | Z40: =COUNTIF(INDIRECT(CONCATENATE($Y$3,":",$Y$3)),"<="&AA41) -> 7 | AA40: =IF(Y40>$Y$7,AA39,AA38) -> 7 | AB40: =IF(Y40>$Y$7,AB39,AB41) -> 0
AA41: =IF(Y40>$Y$7,AA40,AA40+$Y$6) -> 7 | AB41: =IF(Y40>$Y$7,AB40,Z40-Z37) -> 0
AA42: =IF(Y40>$Y$7,AA41,AA41) -> 7 | AB42: =IF(Y40>$Y$7,AB41,0) -> 0
K43: Number of Bins: | L43: 5 | M43: (Max choice: 15) | Y43: 12 | Z43: =COUNTIF(INDIRECT(CONCATENATE($Y$3,":",$Y$3)),"<="&AA44) -> 7 | AA43: =IF(Y43>$Y$7,AA42,AA41) -> 7 | AB43: =IF(Y43>$Y$7,AB42,AB44) -> 0
AA44: =IF(Y43>$Y$7,AA43,AA43+$Y$6) -> 7 | AB44: =IF(Y43>$Y$7,AB43,Z43-Z40) -> 0
AA45: =IF(Y43>$Y$7,AA44,AA44) -> 7 | AB45: =IF(Y43>$Y$7,AB44,0) -> 0
Y46: 13 | Z46: =COUNTIF(INDIRECT(CONCATENATE($Y$3,":",$Y$3)),"<="&AA47) -> 7 | AA46: =IF(Y46>$Y$7,AA45,AA44) -> 7 | AB46: =IF(Y46>$Y$7,AB45,AB47) -> 0
AA47: =IF(Y46>$Y$7,AA46,AA46+$Y$6) -> 7 | AB47: =IF(Y46>$Y$7,AB46,Z46-Z43) -> 0
AA48: =IF(Y46>$Y$7,AA47,AA47) -> 7 | AB48: =IF(Y46>$Y$7,AB47,0) -> 0
Y49: 14 | Z49: =COUNTIF(INDIRECT(CONCATENATE($Y$3,":",$Y$3)),"<="&AA50) -> 7 | AA49: =IF(Y49>$Y$7,AA48,AA47) -> 7 | AB49: =IF(Y49>$Y$7,AB48,AB50) -> 0
AA50: =IF(Y49>$Y$7,AA49,AA49+$Y$6) -> 7 | AB50: =IF(Y49>$Y$7,AB49,Z49-Z46) -> 0
AA51: =IF(Y49>$Y$7,AA50,AA50) -> 7 | AB51: =IF(Y49>$Y$7,AB50,0) -> 0
Y52: 15 | Z52: =COUNTIF(INDIRECT(CONCATENATE($Y$3,":",$Y$3)),"<="&AA53) -> 7 | AA52: =IF(Y52>$Y$7,AA51,AA50) -> 7 | AB52: =IF(Y52>$Y$7,AB51,AB53) -> 0
AA53: =IF(Y52>$Y$7,AA52,AA52+$Y$6) -> 7 | AB53: =IF(Y52>$Y$7,AB52,Z52-Z49) -> 0
AA54: =IF(Y52>$Y$7,AA53,AA53) -> 7 | AB54: =IF(Y52>$Y$7,AB53,0) -> 0
P58: (Ignore This) Special Calculations to obtain the Sums of Squares used in the Hypothesis Test Table above.
P59: Sum of Data in each Group | R59: Deviation of each Mean from the Overall Mean | T59: Sum of Squared Deviations from within each Group
P61: =IF(ISNUMBER(J7),K7*J7,"") -> 37.000 | R61: =IF(ISNUMBER(J7),J7*(K7-$N$7)^2,"") -> 0.343 | T61: =IF(ISNUMBER(J7),(J7-1)*M7,"") -> 7.429
P62: 20.000 | R62: 0.017 | T62: 2.000
P63: 63.000 | R63: 0.620 | T63: 33.692
P64: 37.000 | R64: 0.343 | T64: 7.429

Sheet One Proportion
A1: Making Inference: One Proportion Z Test | Y1: Alternatives
Y2: >
Y3: ≠
C4: Numerical Summary | I4: Hypothesis Test | O4: Check for Normality of p-hat | Y4: <
C5: x | D5: n | E5: Sample Proportion | I5: H0 : | J5: p | K5: = | L5: 0.330 | O5: Hypothesis Test
I6: Ha : | J6: p | K6: ≠ | L6: =L5 -> 0.330 | P6: =D7*L5 -> 33
C7: 35 | D7: 100 | E7: =C7/D7 -> 0.350 | I7: Sample Proportion (p-hat) | K7: Test Statistic ( z ) | L7: P-value | P7: =D7*(1-L5) -> 67
O8: Confidence Interval
C9: Graphical Summary | I9: =E7 -> 0.350 | K9: =(I9-L5)/SQRT(L5*(1-L5)/D7) -> 0.425 | L9: =IF(K6="<",_xlfn.NORM.S.DIST(K9,TRUE),IF(K6=">",1-_xlfn.NORM.S.DIST(K9,TRUE),2*MIN(_xlfn.NORM.S.DIST(K9,TRUE),1-_xlfn.NORM.S.DIST(K9,TRUE)))) -> 0.671 | P9: =D7*I9 -> 35
P10: =D7*(1-I9) -> 65
I11: 95% | J11: Confidence Interval for the True Proportion
I12: Point Estimate (Sample Proportion) | J12: Margin of Error | K12: Confidence Interval
K13: Lower Bound | L13: Upper Bound
I14: =E7 -> 0.350 | J14: =-_xlfn.NORM.INV((1-I11)/2,0,1)*SQRT(I14*(1-I14)/D7) -> 0.093 | K14: =I14-J14 -> 0.257 | L14: =I14+J14 -> 0.443
J15: ="z*=±"&ROUND(_xlfn.NORM.INV((1-I11)/2,0,1),3) -> z*=±-1.96

Sheet Two Proportions
B1: Making Inference: Two Proportions Z Test | W1: Alternatives
W2: >
W3: ≠
C4: Numerical Summary | I4: Hypothesis Test | N4: Check for Normality of p-hat | W4: <
C5: x | D5: n | E5: Sample Proportion | I5: H0 : | J5: p1 | K5: = | L5: p2 | N5: Group 1
I6: Ha : | J6: p1 | K6: ≠ | L6: p2 | P6: =D7*I10 -> 48
C7: 48 | D7: 120 | E7: =C7/D7 -> 0.400 | F7: Group 1 | I7: Sample Proportion (p-hat 1) | J7: Sample Proportion (p-hat 2) | K7: Test Statistic ( z ) | L7: P-value | P7: =D7*(1-I10) -> 72
C8: 40 | D8: 90 | E8: =C8/D8 -> 0.444 | F8: Group 2 | N8: Group 2
P9: =D8*J10 -> 40
C10: Graphical Summary | I10: =E7 -> 0.400 | J10: =E8 -> 0.444 | K10: =(I10-J10)/SQRT((C7+C8)/(D7+D8)*(1-(C7+C8)/(D7+D8))*((1/D7)+(1/D8))) -> -0.646 | L10: =IF(K6="<",_xlfn.NORM.S.DIST(K10,TRUE),IF(K6=">",1-_xlfn.NORM.S.DIST(K10,TRUE),2*MIN(_xlfn.NORM.S.DIST(K10,TRUE),1-_xlfn.NORM.S.DIST(K10,TRUE)))) -> 0.518 | P10: =D8*(1-J10) -> 50
E11: =1-E7 -> 0.600
E12: =1-E8 -> 0.556 | I12: 95% | J12: Confidence Interval for the True Difference of Proportions
I13: Point Estimate (Difference of Proportions) | J13: Margin of Error | K13: Confidence Interval
K14: Lower Bound | L14: Upper Bound
I15: =I10-J10 -> -0.044 | J15: =_xlfn.NORM.INV(1-(1-I12)/2,0,1)*SQRT((I10*(1-I10)/D7)+(J10*(1-J10)/D8)) -> 0.135 | K15: =I15-J15 -> -0.179 | L15: =I15+J15 -> 0.091
J16: ="z*=±"&ROUND(_xlfn.NORM.INV(1-(1-I12)/2,0,1),3) -> z*=±1.96

Sheet Chi Square
B1: Making Inference: Chi-Squared Test of Independence
C4: Numerical Summary: Observed Counts | M4: Hypothesis Test | S4: Check Requirements for Chi-Squared Test
J5: Total | M5: H0 : row variable is independent of the column variable. | S5: Expected Counts
D6: Column 1 | E6: Column 2 | F6: Column 3 | G6: Column 4 | H6: Column 5 | I6: Column 6 | M6: Ha : row variable is not independent of the column variable. | T6: =D6 -> Column 1 | U6: =E6 -> Column 2 | V6: Column 3 | W6: Column 4 | X6: Column 5 | Y6: Column 6
C7: Row 1 | D7: 150 | E7: 152 | F7: 4 | J7: =IF(SUM(D7:I7)>0,SUM(D7:I7),"") -> 306 | M7: Test Statistic ( Pearson chi-square ) | O7: Degrees of Freedom | P7: P-value | S7: =C7 -> Row 1 | T7: =IF(ISNUMBER(D7),$J7*D$13/$J$13,"") -> 143.4 | U7: 157.9 | V7: 4.7
C8: Row 2 | D8: 155 | E8: 184 | F8: 6 | J8: =IF(SUM(D8:I8)>0,SUM(D8:I8),"") -> 345 | S8: Row 2 | T8: 161.6 | U8: 178.1 | V8: 5.3
C9: Row 3 | M9: =SUM(T17:Y22) -> 1.197 | O9: =(COUNT(J7:J12)-1)*(COUNT(D13:I13)-1) -> 2 | P9: =CHIDIST(M9,O9) -> 0.550 | S9: Row 3
C10: Row 4 | S10: Row 4
C11: Row 5 | S11: Row 5
C12: Row 6 | S12: Row 6
C13: Total | D13: =IF(SUM(D7:D12)>0,SUM(D7:D12),"") -> 305 | E13: =IF(SUM(E7:E12)>0,SUM(E7:E12),"") -> 336 | F13: 10 | J13: =SUM(J7:J12) -> 651
S14: Extra Information for those Interested
C15: Graphical Summary: Observed Counts | S15: Chi-squared Sums
T16: =T6 -> Column 1 | U16: =U6 -> Column 2 | V16: Column 3 | W16: Column 4 | X16: Column 5 | Y16: Column 6
S17: =S7 -> Row 1 | T17: =IF(ISNUMBER(T7),(D7-T7)^2/T7,"") -> 0.3 | U17: 0.2 | V17: 0.1
S18: =S8 -> Row 2 | T18: 0.3 | U18: 0.2 | V18: 0.1
S19: Row 3
S20: Row 4
S21: Row 5
S22: Row 6
C32: If you click on the above graphic, it will highlight your "Observed Counts" table. You can then resize the highlighted area so that it includes only the cells you want.

Sheet Linear Regression
A1: X | B1: Y | F1: Making Inference: Simple Linear Regression | X1: X (Repeated) | Y1: Residuals | Z1: For those interested: | AC1: Squared Residuals | AD1: Sum of Squared Residuals | AE1: Squared X Deviations | AG1: For those interested… Code to make the histogram of residuals:
A2: 4.34 | B2: 50 | X2: =IF(AB2=1, A2,NA()) -> 4.34 | Y2: =IF(AB2=1,B2-($H$7+$I$7*X2),NA()) -> -20.0222547 | AA2: =AVERAGE(A:A) -> 4.338461538 | AB2: =IF(ISBLANK(A2),0,1) -> 1.000 | AC2: =IF(ISBLANK(A2), "", Y2^2) -> 400.891 | AD2: =SUM(AC2:AC1001) -> 1796.636 | AE2: =IF(AB2=1,(A2-$AA$2)^2, "") -> 0.000
A3: 4.73 | B3: 83.3 | X3: 4.73 | Y3: 7.636177885 | AB3: =IF(ISBLANK(A3),0,1) -> 1.000 | AC3: =IF(ISBLANK(A3), "", Y3^2) -> 58.311 | AD3: Sum of Squared x deviations | AE3: =IF(AB3=1,(A3-$AA$2)^2, "") -> 0.153 | AF3: =IFERROR(Y2, "") -> -20.0222547 | AG3: Column to Use | AH3: AF
A4: 5.28 | B4: 76.7 | F4: Numerical Summaries | N4: Hypothesis Test of the Regression Slope | S4: Check for Linearity and Constant Variance of the Residuals | X4: 5.28 | Y4: -6.91987872 | AB4: 1.000 | AC4: 47.885 | AD4: =SUM(AE:AE) -> 15.00916923 | AE4: 0.886 | AF4: =IFERROR(Y3, "") -> 7.636177885 | AG4: Histogram Start Value | AH4: =MIN(INDIRECT(CONCATENATE(AH3,":",AH3))) -> -20.0222547
A5: 3.85 | B5: 50 | F5: n | G5: Correlation ( r ) | H5: Y-Intercept (b0) | I5: Slope (b1) | J5: Sx | K5: Sy | N5: H0 : | O5: β1 | P5: = | Q5: 0 | X5: 3.85 | Y5: -12.93413155 | AB5: 1.000 | AC5: 167.292 | AD5: Standard error of Slope | AE5: 0.239 | AF5: -6.91987872 | AG5: Histogram Stop Value | AH5: =MAX(INDIRECT(CONCATENATE(AH3,":",AH3))) -> 16.88368218
A6: 5.4 | B6: 76.7 | N6: Ha : | O6: β1 | P6: ≠ | Q6: 0 | X6: 5.4 | Y6: -8.655745616 | AB6: 1.000 | AC6: 74.922 | AD6: =SQRT((AD2/P9)/AD4) -> 3.298795414 | AE6: 1.127 | AF6: -12.93413155 | AG6: Bin Step Size | AH6: =(AH5-AH4)/AH7 -> 7.38
A7: 4.03 | B7: 73.3 | F7: =SUM(AB:AB) -> 13 | G7: =CORREL(A:A,B:B) -> 0.798 | H7: =INTERCEPT(B:B,A:A) -> 7.242 | I7: =SLOPE(B:B,A:A) -> 14.466 | J7: =_xlfn.STDEV.S(A:A) -> 1.118 | K7: =_xlfn.STDEV.S(B:B) -> 20.284 | N7: Slope Estimate | O7: Test Statistic ( t ) | P7: Degrees of Freedom | Q7: P-value | X7: 4.03 | Y7: 7.76206811 | AB7: 1.000 | AC7: 60.250 | AE7: 0.095 | AF7: -8.655745616 | AG7: Number of Bins | AH7: =T32 -> 5.00
A8: 5.3 | B8: 100 | X8: 5.3 | Y8: 16.09081013 | AB8: 1.000 | AC8: 258.914 | AE8: 0.925 | AF8: 7.76206811 | AJ8: X-axis of Graph | AK8: Y-axis of Graph
A9: 5.93 | B9: 96.7 | F9: Graphical Summary | N9: =I7 -> 14.466 | O9: =N9/SQRT((AD2/(F7-2))/(J7^2*(F7-1))) -> 4.385 | P9: =F7-2 -> 11.000 | Q9: =TDIST(ABS(O9),F7-2,2) -> 0.001 | X9: 5.93 | Y9: 3.677508928 | AB9: 1.000 | AC9: 13.524 | AE9: 2.533 | AF9: 16.09081013 | AH9: Bin Number | AI9: Number of Values in Bin | AJ9: =AJ10 -> -20.0222547 | AK9: 0
A10: 3.89 | B10: 50 | X10: 3.89 | Y10: -13.51275384 | AB10: 1.000 | AC10: 182.595 | AE10: 0.201 | AF10: 3.677508928 | AG10: First Bin Start | AH10: 1 | AI10: =COUNTIF(INDIRECT(CONCATENATE($AH$3,":",$AH$3)),"<="&AJ11) -> 3 | AJ10: =AH4 -> -20.0222547 | AK10: =AI10 -> 3
A11: 2.48 | B11: 60 | X11: 2.48 | Y11: 16.88368218 | AB11: 1.000 | AC11: 285.059 | AE11: 3.454 | AF11: -13.51275384 | AJ11: =AJ10+$AH$6 -> -12.64 | AK11: =AK10 -> 3
A12: 3.53 | B12: 70 | N12: 95% | O12: Confidence Interval for the True Regression Slope | X12: 3.53 | Y12: 11.69484684 | AB12: 1.000 | AC12: 136.769 | AE12: 0.654 | AF12: 16.88368218 | AJ12: =IF(AH10>$AH$7,"",AJ11) -> -12.64106733 | AK12: =IF(AH10>$AH$7,"",0) -> 0
A13: 5.27 | B13: 90 | N13: Slope Estimate | O13: Margin of Error | P13: Confidence Interval | X13: 5.27 | Y13: 6.524776854 | AB13: 1.000 | AC13: 42.573 | AE13: 0.868 | AF13: 11.69484684 | AG13: Second Bin Start | AH13: 2 | AI13: =COUNTIF(INDIRECT(CONCATENATE($AH$3,":",$AH$3)),"<="&AJ14) -> 6 | AJ13: =IF(AH13>$AH$7,AJ12,AJ11) -> -12.64106733 | AK13: =IF(AH13>$AH$7,AK12,AK14) -> 3
A14: 2.37 | B14: 33.3 | P14: Lower Bound | Q14: Upper Bound | X14: 2.37 | Y14: -8.225106499 | AB14: 1.000 | AC14: 67.652 | AE14: 3.875 | AF14: 6.524776854 | AJ14: =IF(AH13>$AH$7,AJ13,AJ13+$AH$6) -> -5.25987995 | AK14: =IF(AH13>$AH$7,AK13,AI13-AI10) -> 3
J15: Predicted Value | N15: =N9 -> 14.466 | O15: =AD6*ROUND(_xlfn.T.INV.2T(1-N12,P9),3) -> 7.261 | P15: =N15-O15 -> 7.205 | Q15: =N15+O15 -> 21.726 | AB15: 0.000 | AF15: -8.225106499 | AJ15: =IF(AH13>$AH$7,AJ14,AJ14) -> -5.25987995 | AK15: =IF(AH13>$AH$7,AK14,0) -> 0
J16: X | K16: Predicted (y-hat) | O16: ="t*=±"&ROUND(_xlfn.T.INV.2T(1-N12,F7-2),3) -> t*=±2.201 | AB16: 0.000 | AG16: Third Bin Start | AH16: 3 | AI16: =COUNTIF(INDIRECT(CONCATENATE($AH$3,":",$AH$3)),"<="&AJ17) -> 6 | AJ16: =IF(AH16>$AH$7,AJ15,AJ14) -> -5.25987995 | AK16: =IF(AH16>$AH$7,AK15,AK17) -> 0
AB17: 0.000 | AJ17: =IF(AH16>$AH$7,AJ16,AJ16+$AH$6) -> 2.121307426 | AK17: =IF(AH16>$AH$7,AK16,AI16-AI13) -> 0
K18: =IF(ISNUMBER(J18),FORECAST(J18,B:B,A:A),"<-- Type an X-value") -> <-- Type an X-value | AB18: 0.000 | AJ18: =IF(AH16>$AH$7,AJ17,AJ17) -> 2.121307426 | AK18: =IF(AH16>$AH$7,AK17,0) -> 0
AB19: 0.000 | AH19: 4 | AI19: =COUNTIF(INDIRECT(CONCATENATE($AH$3,":",$AH$3)),"<="&AJ20) -> 10 | AJ19: =IF(AH19>$AH$7,AJ18,AJ17) -> 2.121307426 | AK19: =IF(AH19>$AH$7,AK18,AK20) -> 4
S20: Check for Normality of Residuals | AB20: 0.000 | AJ20: =IF(AH19>$AH$7,AJ19,AJ19+$AH$6) -> 9.502494803 | AK20: =IF(AH19>$AH$7,AK19,AI19-AI16) -> 4
AB21: 0.000 | AJ21: =IF(AH19>$AH$7,AJ20,AJ20) -> 9.502494803 | AK21: =IF(AH19>$AH$7,AK20,0) -> 0
AB22: 0.000 | AH22: 5 | AI22: =COUNTIF(INDIRECT(CONCATENATE($AH$3,":",$AH$3)),"<="&AJ23) -> 13 | AJ22: =IF(AH22>$AH$7,AJ21,AJ20) -> 9.502494803 | AK22: =IF(AH22>$AH$7,AK21,AK23) -> 3
AB23: 0.000 | AJ23: =IF(AH22>$AH$7,AJ22,AJ22+$AH$6) -> 16.88368218 | AK23: =IF(AH22>$AH$7,AK22,AI22-AI19) -> 3
AB24: 0.000 | AJ24: =IF(AH22>$AH$7,AJ23,AJ23) -> 16.88368218 | AK24: =IF(AH22>$AH$7,AK23,0) -> 0
AB25: 0.000 | AH25: 6 | AI25: =COUNTIF(INDIRECT(CONCATENATE($AH$3,":",$AH$3)),"<="&AJ26) -> 13 | AJ25: =IF(AH25>$AH$7,AJ24,AJ23) -> 16.88368218 | AK25: =IF(AH25>$AH$7,AK24,AK26) -> 0
AB26: 0.000 | AJ26: =IF(AH25>$AH$7,AJ25,AJ25+$AH$6) -> 16.88368218 | AK26: =IF(AH25>$AH$7,AK25,AI25-AI22) -> 0
AB27: 0.000 | AJ27: =IF(AH25>$AH$7,AJ26,AJ26) -> 16.88368218 | AK27: =IF(AH25>$AH$7,AK26,0) -> 0
AB28: 0.000 | AH28: 7 | AI28: =COUNTIF(INDIRECT(CONCATENATE($AH$3,":",$AH$3)),"<="&AJ29) -> 13 | AJ28: =IF(AH28>$AH$7,AJ27,AJ26) -> 16.88368218 | AK28: =IF(AH28>$AH$7,AK27,AK29) -> 0
AB29: 0.000 | AJ29: =IF(AH28>$AH$7,AJ28,AJ28+$AH$6) -> 16.88368218 | AK29: =IF(AH28>$AH$7,AK28,AI28-AI25) -> 0
AB30: 0.000 | AJ30: =IF(AH28>$AH$7,AJ29,AJ29) -> 16.88368218 | AK30: =IF(AH28>$AH$7,AK29,0) -> 0
AB31: 0.000 | AH31: 8 | AI31: =COUNTIF(INDIRECT(CONCATENATE($AH$3,":",$AH$3)),"<="&AJ32) -> 13 | AJ31: =IF(AH31>$AH$7,AJ30,AJ29) -> 16.88368218 | AK31: =IF(AH31>$AH$7,AK30,AK32) -> 0
S32: Bins: | T32: 5 | AB32: 0.000 | AJ32: =IF(AH31>$AH$7,AJ31,AJ31+$AH$6) -> 16.88368218 | AK32: =IF(AH31>$AH$7,AK31,AI31-AI28) -> 0
AB33: 0.000 | AJ33: =IF(AH31>$AH$7,AJ32,AJ32) -> 16.88368218 | AK33: =IF(AH31>$AH$7,AK32,0) -> 0
AB34: 0.000 | AH34: 9 | AI34: =COUNTIF(INDIRECT(CONCATENATE($AH$3,":",$AH$3)),"<="&AJ35) -> 13 | AJ34: =IF(AH34>$AH$7,AJ33,AJ32) -> 16.88368218 | AK34: =IF(AH34>$AH$7,AK33,AK35) -> 0
AB35: 0.000 | AJ35: =IF(AH34>$AH$7,AJ34,AJ34+$AH$6) -> 16.88368218 | AK35: =IF(AH34>$AH$7,AK34,AI34-AI31) -> 0
AB36: 0.000 | AJ36: =IF(AH34>$AH$7,AJ35,AJ35) -> 16.88368218 | AK36: =IF(AH34>$AH$7,AK35,0) -> 0
AB37: 0.000 | AH37: 10 | AI37: =COUNTIF(INDIRECT(CONCATENATE($AH$3,":",$AH$3)),"<="&AJ38) -> 13 | AJ37: =IF(AH37>$AH$7,AJ36,AJ35) -> 16.88368218 | AK37: =IF(AH37>$AH$7,AK36,AK38) -> 0
AB38: 0.000 | AJ38: =IF(AH37>$AH$7,AJ37,AJ37+$AH$6) -> 16.88368218 | AK38: =IF(AH37>$AH$7,AK37,AI37-AI34) -> 0
AB39: 0.000 | AJ39: =IF(AH37>$AH$7,AJ38,AJ38) -> 16.88368218 | AK39: =IF(AH37>$AH$7,AK38,0) -> 0
AB40: 0.000 | AH40: 11 | AI40: =COUNTIF(INDIRECT(CONCATENATE($AH$3,":",$AH$3)),"<="&AJ41) -> 13 | AJ40: =IF(AH40>$AH$7,AJ39,AJ38) -> 16.88368218 | AK40: =IF(AH40>$AH$7,AK39,AK41) -> 0
AB41: 0.000 | AJ41: =IF(AH40>$AH$7,AJ40,AJ40+$AH$6) -> 16.88368218 | AK41: =IF(AH40>$AH$7,AK40,AI40-AI37) -> 0
AB42: 0.000 | AJ42: =IF(AH40>$AH$7,AJ41,AJ41) -> 16.88368218 | AK42: =IF(AH40>$AH$7,AK41,0) -> 0
AB43: 0.000 | AH43: 12 | AI43: =COUNTIF(INDIRECT(CONCATENATE($AH$3,":",$AH$3)),"<="&AJ44) -> 13 | AJ43: =IF(AH43>$AH$7,AJ42,AJ41) -> 16.88368218 | AK43: =IF(AH43>$AH$7,AK42,AK44) -> 0
AB44: 0.000 | AJ44: =IF(AH43>$AH$7,AJ43,AJ43+$AH$6) -> 16.88368218 | AK44: =IF(AH43>$AH$7,AK43,AI43-AI40) -> 0
AB45: 0.000 | AJ45: =IF(AH43>$AH$7,AJ44,AJ44) -> 16.88368218 | AK45: =IF(AH43>$AH$7,AK44,0) -> 0
AB46: 0.000 | AH46: 13 | AI46: =COUNTIF(INDIRECT(CONCATENATE($AH$3,":",$AH$3)),"<="&AJ47) -> 13 | AJ46: =IF(AH46>$AH$7,AJ45,AJ44) -> 16.88368218 | AK46: =IF(AH46>$AH$7,AK45,AK47) -> 0
AB47: 0.000 | AJ47: =IF(AH46>$AH$7,AJ46,AJ46+$AH$6) -> 16.88368218 | AK47: =IF(AH46>$AH$7,AK46,AI46-AI43) -> 0
AB48: 0.000 | AJ48: =IF(AH46>$AH$7,AJ47,AJ47) -> 16.88368218 | AK48: =IF(AH46>$AH$7,AK47,0) -> 0
AB49: 0.000 | AH49: 14 | AI49: =COUNTIF(INDIRECT(CONCATENATE($AH$3,":",$AH$3)),"<="&AJ50) -> 13 | AJ49: =IF(AH49>$AH$7,AJ48,AJ47) -> 16.88368218 | AK49: =IF(AH49>$AH$7,AK48,AK50) -> 0
AB50: 0.000 | AJ50: =IF(AH49>$AH$7,AJ49,AJ49+$AH$6) -> 16.88368218 | AK50: =IF(AH49>$AH$7,AK49,AI49-AI46) -> 0
AB51: 0.000 | AJ51: =IF(AH49>$AH$7,AJ50,AJ50) -> 16.88368218 | AK51: =IF(AH49>$AH$7,AK50,0) -> 0
AB52: 0.000 | AH52: 15 | AI52: =COUNTIF(INDIRECT(CONCATENATE($AH$3,":",$AH$3)),"<="&AJ53) -> 13 | AJ52: =IF(AH52>$AH$7,AJ51,AJ50) -> 16.88368218 | AK52: =IF(AH52>$AH$7,AK51,AK53) -> 0
AB53: 0.000 | AJ53: =IF(AH52>$AH$7,AJ52,AJ52+$AH$6) -> 16.88368218 | AK53: =IF(AH52>$AH$7,AK52,AI52-AI49) -> 0
AB54: 0.000 | AJ54: =IF(AH52>$AH$7,AJ53,AJ53) -> 16.88368218 | AK54: =IF(AH52>$AH$7,AK53,0) -> 0
AB55: 0.000
AB56: 0.000
AB57: 0.000
AB58: 0.000
AB59: 0.000
AB60: 0.000
AB61: 0.000
AB62: 0.000
AB63: 0.000
AB64: 0.000
AB65: 0.000
X66: =IF(AB66=1, A66,NA()) ->  | Y66: =IF(AB66=1,B66-($H$7+$I$7*X66),NA()) ->  | AB66: 0.000 | AC66: =IF(ISBLANK(A66), "", Y66^2) -> 
AB67: =IF(ISBLANK(A67),0,1) -> 0.000 | AE67: =IF(AB67=1,(A67-$AA$2)^2, "") -> 
AB68: 0.000 | AF68: =IFERROR(Y67, "") -> 
AB69: 0.000
AB70: 0.000
AB71: 0.000
AB72: 0.000
AB73: 0.000
AB74: 0.000
AB75: 0.000
AB76: 0.000
AB77: 0.000
AB78: 0.000
AB79: 0.000
AB80: 0.000
AB81: 0.000
AB82: 0.000
AB83: 0.000
AB84: 0.000
AB85: 0.000
AB86: 0.000
AB87: 0.000
AB88: 0.000
AB89: 0.000
AB90: 0.000
AB91: 0.000
AB92: 0.000
AB93: 0.000
AB94: 0.000
AB95: 0.000
AB96: 0.000
AB97: 0.000
AB98: 0.000
AB99: 0.000
AB100: 0.000
AB101: 0.000
AB102: 0.000
AB103: 0.000
AB104: 0.000
AB105: 0.000
AB106: 0.000
AB107: 0.000
AB108: 0.000
AB109: 0.000
AB110: 0.000
AB111: 0.000
AB112: 0.000
AB113: 0.000
AB114: 0.000
AB115: 0.000
AB116: 0.000
AB117: 0.000
AB118: 0.000
AB119: 0.000
AB120: 0.000
AB121: 0.000
AB122: 0.000
AB123: 0.000
AB124: 0.000
AB125: 0.000
AB126: 0.000
AB127: 0.000
AB128: 0.000
AB129: 0.000
X130: =IF(AB130=1, A130,NA()) ->  | Y130: =IF(AB130=1,B130-($H$7+$I$7*X130),NA()) ->  | AB130: 0.000 | AC130: =IF(ISBLANK(A130), "", Y130^2) -> 
AB131: =IF(ISBLANK(A131),0,1) -> 0.000 | AE131: =IF(AB131=1,(A131-$AA$2)^2, "") -> 
AB132: 0.000 | AF132: =IFERROR(Y131, "") -> 
AB133: 0.000
AB134: 0.000
AB135: 0.000
AB136: 0.000
AB137: 0.000
AB138: 0.000
AB139: 0.000
AB140: 0.000
AB141: 0.000
AB142: 0.000
AB143: 0.000
AB144: 0.000
AB145: 0.000
AB146: 0.000
AB147: 0.000
AB148: 0.000
AB149: 0.000
AB150: 0.000
AB151: 0.000
AB152: 0.000
AB153: 0.000
AB154: 0.000
AB155: 0.000
AB156: 0.000
AB157: 0.000
AB158: 0.000
AB159: 0.000
AB160: 0.000
AB161: 0.000
AB162: 0.000
AB163: 0.000
AB164: 0.000
AB165: 0.000
AB166: 0.000
AB167: 0.000
AB168: 0.000
AB169: 0.000
AB170: 0.000
AB171: 0.000
AB172: 0.000
AB173: 0.000
AB174: 0.000
AB175: 0.000
AB176: 0.000
AB177: 0.000
AB178: 0.000
AB179: 0.000
AB180: 0.000
AB181: 0.000
AB182: 0.000
AB183: 0.000
AB184: 0.000
AB185: 0.000
AB186: 0.000
AB187: 0.000
AB188: 0.000
AB189: 0.000
AB190: 0.000
AB191: 0.000
AB192: 0.000
AB193: 0.000
X194: =IF(AB194=1, A194,NA()) ->  | Y194: =IF(AB194=1,B194-($H$7+$I$7*X194),NA()) ->  | AB194: 0.000 | AC194: =IF(ISBLANK(A194), "", Y194^2) -> 
AB195: =IF(ISBLANK(A195),0,1) -> 0.000 | AE195: =IF(AB195=1,(A195-$AA$2)^2, "") -> 
AB196: 0.000 | AF196: =IFERROR(Y195, "") -> 
AB197: 0.000
AB198: 0.000
AB199: 0.000
AB200: 0.000
... 801 more rows
